[Event "VI Sunway Sitges Open 2019"]
[Site "Sitges"]
[Date "2019.12.19"]
[Round "7.16"]
[White "Peralta, Fernando"]
[Black "Parvanyan, Ashot"]
[Result "1/2-1/2"]
[ECO "A70"]
[WhiteElo "2577"]
[BlackElo "2456"]
[Annotator "ChessBase"]
[PlyCount "69"]
[EventDate "2019.12.13"]
[EventType "swiss"]
[EventCountry "ESP"]
[SourceTitle "playchess.com"]
[Source "ChessBase"]
[SourceQuality "1"]
[TimeControl "40/5400+30:1800+30"]

1. d4 {[%emt 0:00:00]} Nf6 {[%emt 0:00:00]} 2. c4 {[%emt 0:00:00]} g6 {[%emt 0:00:01]} 3. Nc3 {[%emt 0:00:00]} Bg7 {[%emt 0:00:06]} 4. e4 {[%emt 0:00:00]} d6 {[%emt 0:00:05]} 5. h3 {[%emt 0:00:33]} O-O {[%emt 0:00:24]} 6. Be3 {[%emt 0:00:15]} c5 {[%emt 0:00:56]} 7. d5 {[%emt 0:00:09]} e6 {[%emt 0:00:24]} 8. Nf3 {[%emt 0:01:05]} exd5 {[%emt 0:01:01]} 9. cxd5 {[%emt 0:00:15]} Re8 {[%emt 0:01:18]} 10. Nd2 {[%emt 0:00:29]} Na6 {[%emt 0:04:59]} 11. Be2 {[%emt 0:00:59]} Nc7 {[%emt 0:01:07]} 12. a4 {[%emt 0:00:21]} b6 {[%emt 0:15:48]} 13. O-O {[%emt 0:00:55]} Rb8 {[%emt 0:08:41]} 14. Bg5 {[%emt 0:01:57]} a6 {[%emt 0:10:47]} 15. f4 {[%emt 0:01:08]} b5 {[%emt 0:02:57]} 16. Bf3 {[%emt 0:01:26]} Qd7 {[%emt 0:07:59]} 17. e5 {[%emt 0:41:45]} dxe5 {[%emt 0:01:15]} 18. Bxf6 {[%emt 0:02:21]} Bxf6 {[%emt 0:00:09]} 19. Nde4 {[%emt 0:00:55]} Bg7 {[%emt 0:02:02]} 20. d6 {[%emt 0:02:57]} Ne6 {[%emt 0:01:32]} 21. Nd5 {[%emt 0:02:50]} Qd8 {[%emt 0:01:32]} 22. axb5 {[%emt 0:20:50]} Rxb5 {[%emt 0:02:00]} 23. fxe5 {[%emt 0:06:53]} Bxe5 {[%emt 0:01:57]} 24. Be2 {[%emt 0:00:33]} Rxb2 {[%emt 0:08:50]} 25. Ndf6+ {[%emt 0:02:55]} Kg7 {[%emt 0:02:25]} 26. Nxe8+ {[%emt 0:03:18]} Qxe8 {[%emt 0:00:05]} 27. Rb1 {[%emt 0:04:55]} Rxb1 {[%emt 0:04:48]} 28. Qxb1 {[%emt 0:00:06]} f5 {[%emt 0:00:28]} 29. Nd2 {[%emt 0:00:35]} Nd4 {[%emt 0:06:25]} 30. Bc4 {[%emt 0:01:10]} Bxd6 {[%emt 0:00:13]} 31. Re1 {[%emt 0:01:23]} Qd8 {[%emt 0:03:53]} 32. Qb2 {[%emt 0:01:14]} Qf6 {[%emt 0:02:47]} 33. Kh1 {[%emt 0:00:08]} Bg3 {[%emt 0:06:57]} 34. Re8 {[%emt 0:00:37]} Be5 {[%emt 0:02:02]} 35. Kg1 {[%emt 0:00:27]} 1/2-1/2

[Event "VI Sunway Sitges Open 2019"]
[Site "Sitges"]
[Date "2019.12.19"]
[Round "7.17"]
[White "Kacharava, Nikolozi"]
[Black "Lopez Martinez, Josep Manuel"]
[Result "1/2-1/2"]
[ECO "B51"]
[WhiteElo "2416"]
[BlackElo "2561"]
[Annotator "RC"]
[PlyCount "205"]
[EventDate "2019.12.13"]
[EventType "swiss"]
[EventCountry "ESP"]
[SourceTitle "playchess.com"]
[Source "ChessBase"]
[SourceQuality "1"]
[TimeControl "40/5400+30:1800+30"]

1. e4 {[%emt 0:00:00]} c5 {[%emt 0:01:08]} 2. Nf3 {[%emt 0:00:00]} d6 {[%emt 0:00:49]} 3. d4 {[%emt 0:00:32]} cxd4 {[%emt 0:00:10]} 4. Qxd4 {[%emt 0:00:26]} Nf6 {[%emt 0:01:05]} 5. Nc3 {[%emt 0:00:22]} e5 {[%emt 0:06:27]} 6. Bb5+ {[%emt 0:04:34]} Nbd7 {[%emt 0:01:20]} 7. Qd3 {[%emt 0:02:18]} h6 {[%emt 0:00:36]} 8. Nd2 {[%emt 0:05:09]} Be7 {[%emt 0:05:25]} 9. Nc4 {[%emt 0:03:54]} O-O {[%emt 0:00:35]} 10. Bxd7 {[%emt 0:02:55]} Bxd7 {[%emt 0:15:34]} 11. O-O {[%emt 0:12:32]} Be6 {[%emt 0:05:16]} 12. Ne3 {[%emt 0:02:06]} Rc8 {[%emt 0:00:36]} 13. Ncd5 {[%emt 0:13:53]} Nxd5 {[%emt 0:01:45]} 14. Nxd5 {[%emt 0:02:38]} Bxd5 {[%emt 0:01:01]} 15. Qxd5 {[%emt 0:01:05]} Qd7 {[%emt 0:00:21]} 16. c3 {[%emt 0:04:39]} Rc5 {[%emt 0:06:29]} 17. Qd3 {[%emt 0:01:40]} Qc6 {[%emt 0:00:38]} 18. Be3 {[%emt 0:03:18]} Rc4 {[%emt 0:02:03]} 19. f3 {[%emt 0:00:59]} a6 {[%emt 0:00:20]} 20. Rac1 {[%emt 0:05:47]} Rc8 {[%emt 0:01:08]} 21. Rc2 {[%emt 0:03:53]} b5 {[%emt 0:01:18]} 22. Rd2 {[%emt 0:04:53]} Qd7 {[%emt 0:08:34]} 23. Qd5 {[%emt 0:04:48]} Qe6 {[%emt 0:00:27]} 24. Rd3 {[%emt 0:02:53]} h5 {[%emt 0:01:44]} 25. h3 {[%emt 0:03:26]} Qxd5 {[%emt 0:00:49]} 26. Rxd5 {[%emt 0:00:14]} h4 {[%emt 0:00:44]} 27. Kf2 {[%emt 0:03:56]} g6 {[%emt 0:02:08]} 28. Ke2 {[%emt 0:01:20]} f6 {[%emt 0:02:46]} 29. Kd3 {[%emt 0:01:45]} Kf7 {[%emt 0:00:11]} 30. Rc1 {[%emt 0:01:28]} f5 {[%emt 0:00:49]} 31. b3 {[%emt 0:01:52]} R4c6 {[%emt 0:01:07]} 32. Bd2 {[%emt 0:00:45]} Ke6 {[%emt 0:01:40]} 33. Ra1 {[%emt 0:00:33]} Rf8 {[%emt 0:06:44]} 34. Ke2 {[%emt 0:00:23]} Bd8 {[%emt 0:00:36]} 35. a4 {[%emt 0:01:21]} fxe4 {[%emt 0:02:04]} 36. fxe4 {[%emt 0:00:19]} bxa4 {[%emt 0:01:24]} 37. Rxa4 {[%emt 0:00:44]} Bb6 {[%emt 0:01:35]} 38. Rxa6 {[%emt 0:01:39]} Rf2+ {[%emt 0:01:36]} 39. Kd1 {[%emt 0:00:58]} Rxg2 {[%emt 0:00:22]} 40. b4 {[%emt 0:00:00]} g5 {[%emt 0:00:00]} 41. b5 {[%emt 0:09:05]} Rc5 {[%emt 0:05:39]} 42. Rxb6 {[%emt 0:02:08]} Rxd5 {[%emt 0:00:07]} 43. exd5+ {[%emt 0:00:02]} Kxd5 {[%emt 0:00:08]} 44. Rb8 {[%emt 0:04:40]} g4 {[%emt 0:00:37]} 45. Rg8 {[%emt 0:05:43]} Ke4 {[%emt 0:07:37]} 46. Kc2 {[%emt 0:04:37]} gxh3 {[%emt 0:01:34]} 47. Rh8 {[%emt 0:00:08]} Kd5 {[%emt 0:06:47]} 48. Rxh4 {[%emt 0:00:13]} Kc5 {[%emt 0:03:47]} 49. Rxh3 {[%emt 0:03:59]} Kxb5 {[%emt 0:00:13]} 50. Kd3 {[%emt 0:00:55]} d5 {[%emt 0:01:39]} 51. Be3 {[%emt 0:00:32]} d4 {[%emt 0:00:27]} 52. cxd4 {[%emt 0:00:18]} exd4 {[%emt 0:00:05]} 53. Kxd4 {[%emt 0:00:27]} Re2 {[%emt 0:02:43]} 54. Kd5 {[%emt 0:00:41]} Rg2 {[%emt 0:03:26]} 55. Rh7 {[%emt 0:02:34]} Kb4 {[%emt 0:00:59]} 56. Bd4 {[%emt 0:00:46]} Rg5+ {[%emt 0:00:14]} 57. Be5 {[%emt 0:00:07]} Ka5 {[%emt 0:00:46]} 58. Rh1 {[%emt 0:00:07]} Kb5 {[%emt 0:00:42]} 59. Rb1+ {[%emt 0:00:12]} Ka5 {[%emt 0:00:04]} 60. Kd4 {[%emt 0:00:11]} Ka6 {[%emt 0:00:19]} 61. Bd6 {[%emt 0:01:01]} Rb5 {[%emt 0:01:30]} 62. Rh1 {[%emt 0:00:42]} Rg5 {[%emt 0:01:26]} 63. Kc4 {[%emt 0:01:30]} Kb6 {[%emt 0:00:51]} 64. Rh6 {[%emt 0:00:33]} Kb7 {[%emt 0:00:34]} 65. Rf6 {[%emt 0:01:36]} Rh5 {[%emt 0:01:54]} 66. Bf4 {[%emt 0:02:00]} Kc8 {[%emt 0:00:44]} 67. Rf7 {[%emt 0:00:09]} Kd8 {[%emt 0:00:13]} 68. Kd4 {[%emt 0:00:55]} Ke8 {[%emt 0:00:10]} 69. Ra7 {[%emt 0:00:05]} Rf5 {[%emt 0:06:02]} 70. Bd6 {[%emt 0:00:21]} Rf7 {[%emt 0:01:29]} 71. Ra8+ {[%emt 0:01:22]} Kd7 {[%emt 0:00:03]} 72. Ke5 {[%emt 0:00:07]} Rf1 {[%emt 0:00:30]} 73. Ra7+ {[%emt 0:00:08]} Kc6 {[%emt 0:00:04]} 74. Rc7+ {[%emt 0:00:07]} Kb5 {[%emt 0:00:25]} 75. Rc5+ {[%emt 0:00:29]} Kb6 {[%emt 0:00:21]} 76. Ke6 {[%emt 0:01:06]} Rh1 {[%emt 0:01:42]} 77. Rg5 {[%emt 0:00:37]} Kc6 {[%emt 0:00:25]} 78. Rc5+ {[%emt 0:00:03]} Kb6 {[%emt 0:00:06]} 79. Rc4 {[%emt 0:00:44]} Kb5 {[%emt 0:00:33]} 80. Rc3 {[%emt 0:00:22]} Rd1 {[%emt 0:01:20]} 81. Kd7 {[%emt 0:00:46]} Rd4 {[%emt 0:00:42]} 82. Rc1 {[%emt 0:00:34]} Rd3 {[%emt 0:02:44]} 83. Ke6 {[%emt 0:00:46]} Rd4 {[%emt 0:00:35]} 84. Ke5 {[%emt 0:00:35]} Rc4 {[%emt 0:00:56]} 85. Rb1+ {[%emt 0:00:09]} Kc6 {[%emt 0:00:20]} 86. Rb8 {[%emt 0:00:19]} Rh4 {[%emt 0:01:10]} 87. Rc8+ {[%emt 0:00:09]} Kb7 {[%emt 0:00:09]} 88. Rc1 {[%emt 0:00:27]} Rh5+ {[%emt 0:00:23]} 89. Ke6 {[%emt 0:00:18]} Kb6 {[%emt 0:00:33]} 90. Be5 {[%emt 0:01:56]} Kb5 {[%emt 0:00:35]} 91. Kd5 {[%emt 0:00:06]} Ka5 {[%emt 0:00:30]} 92. Rb1 {[%emt 0:00:03]} Rg5 {[%emt 0:00:28]} 93. Kd4 {[%emt 0:00:02]} Ka6 {[%emt 0:00:19]} 94. Bd6 {[%emt 0:00:10]} Rb5 {[%emt 0:00:23]} 95. Rh1 {[%emt 0:00:05]} Kb6 {[%emt 0:00:43]} 96. Rh6 {[%emt 0:00:06]} Kb7 {[%emt 0:01:14]} 97. Be5 {[%emt 0:00:37]} Ra5 {[%emt 0:01:16]} 98. Rh7+ {[%emt 0:00:30]} Kc6 {[%emt 0:00:32]} 99. Rc7+ {[%emt 0:00:17]} Kb6 {[%emt 0:00:40]} 100. Rc1 {[%emt 0:00:32]} Kb7 {[%emt 0:00:36]} 101. Ke4 {[%emt 0:00:20]} Rb5 {[%emt 0:00:26]} 102. Bd4 {[%emt 0:01:05]} Rh5 {[%emt 0:01:19]} 103. Rg1 {[%emt 0:00:38]} 1/2-1/2

[Event "VI Sunway Sitges Open 2019"]
[Site "Sitges"]
[Date "2019.12.19"]
[Round "7.26"]
[White "Praggnanandhaa R"]
[Black "Kirk, Ezra"]
[Result "1-0"]
[ECO "B31"]
[WhiteElo "2586"]
[BlackElo "2433"]
[Annotator "ChessBase"]
[PlyCount "57"]
[EventDate "2019.12.13"]
[EventType "swiss"]
[EventCountry "ESP"]
[SourceTitle "playchess.com"]
[Source "ChessBase"]
[SourceQuality "1"]
[TimeControl "40/5400+30:1800+30"]

1. e4 {[%emt 0:00:16]} c5 {[%emt 0:00:00]} 2. Nf3 {[%emt 0:00:26]} Nc6 {[%emt 0:00:07]} 3. Bb5 {[%emt 0:00:06]} g6 {[%emt 0:00:26]} 4. Bxc6 {[%emt 0:00:19]} bxc6 {[%emt 0:00:17]} 5. d4 {[%emt 0:00:26]} Bg7 {[%emt 0:05:32]} 6. dxc5 {[%emt 0:00:47]} Qa5+ {[%emt 0:03:01]} 7. Nbd2 {[%emt 0:00:16]} Ba6 {[%emt 0:07:15]} 8. Rb1 {[%emt 0:02:30]} Qxc5 {[%emt 0:12:10]} 9. b4 {[%emt 0:01:44]} Qh5 {[%emt 0:01:14]} 10. c4 {[%emt 0:01:55]} Nh6 {[%emt 0:07:12]} 11. O-O {[%emt 0:07:15]} O-O {[%emt 0:00:59]} 12. Re1 {[%emt 0:00:30]} d5 {[%emt 0:10:08]} 13. exd5 {[%emt 0:15:08]} cxd5 {[%emt 0:00:18]} 14. b5 {[%emt 0:00:24]} Bc8 {[%emt 0:00:46]} 15. c5 {[%emt 0:00:46]} d4 {[%emt 0:29:26]} 16. c6 {[%emt 0:18:44]} g5 {[%emt 0:00:00]} 17. Ne4 {[%emt 0:03:13]} g4 {[%emt 0:00:00]} 18. Ng3 {[%emt 0:01:36]} Qg6 {[%emt 0:00:51]} 19. Bxh6 {[%emt 0:00:39]} Qxh6 {[%emt 0:06:18]} 20. Nxd4 {[%emt 0:02:00]} Qg5 {[%emt 0:01:53]} 21. c7 {[%emt 0:07:07]} Bb7 {[%emt 0:01:57]} 22. Ndf5 {[%emt 0:02:17]} e6 {[%emt 0:01:47]} 23. Nd6 {[%emt 0:01:13]} Bd5 {[%emt 0:00:50]} 24. Qc1 {[%emt 0:02:52]} Qe7 {[%emt 0:03:17]} 25. Ngf5 {[%emt 0:01:28]} Qd7 {[%emt 0:01:17]} 26. c8=Q {[%emt 0:02:17]} Raxc8 {[%emt 0:00:46]} 27. Nxc8 {[%emt 0:00:11]} exf5 {[%emt 0:00:46]} 28. Ne7+ {[%emt 0:00:09]} Kh8 {[%emt 0:00:04]} 29. Qd2 {[%emt 0:02:58]} 1-0

[Event "VI Sunway Sitges Open 2019"]
[Site "Sitges"]
[Date "2019.12.19"]
[Round "7.27"]
[White "Chen, Qi b"]
[Black "Gukesh D"]
[Result "0-1"]
[ECO "B30"]
[WhiteElo "2445"]
[BlackElo "2547"]
[Annotator "ChessBase"]
[PlyCount "80"]
[EventDate "2019.12.13"]
[EventType "swiss"]
[EventCountry "ESP"]
[SourceTitle "playchess.com"]
[Source "ChessBase"]
[SourceQuality "1"]
[TimeControl "40/5400+30:1800+30"]

1. e4 {[%emt 4:45:59]} c5 {[%emt 0:00:36]} 2. Nf3 {[%emt 0:00:11]} Nc6 {[%emt 0:00:29]} 3. Bb5 {[%emt 0:00:30]} e6 {[%emt 0:01:49]} 4. Bxc6 {[%emt 0:00:26]} bxc6 {[%emt 0:00:11]} 5. d3 {[%emt 0:00:17]} Ne7 {[%emt 0:02:50]} 6. Qe2 {[%emt 0:00:24]} Ng6 {[%emt 0:05:11]} 7. h4 {[%emt 0:01:52]} h5 {[%emt 0:01:02]} 8. b3 {[%emt 0:04:03]} e5 {[%emt 0:05:27]} 9. g3 {[%emt 0:11:46]} f6 {[%emt 0:17:16]} 10. Bb2 {[%emt 0:04:15]} d5 {[%emt 0:00:18]} 11. Nfd2 {[%emt 0:02:54]} Bd6 {[%emt 0:02:45]} 12. Nc3 {[%emt 0:01:42]} Bg4 {[%emt 0:07:27]} 13. f3 {[%emt 0:02:22]} Be6 {[%emt 0:00:06]} 14. Na4 {[%emt 0:03:44]} Nf8 {[%emt 0:07:03]} 15. Ba3 {[%emt 0:10:06]} Qe7 {[%emt 0:01:09]} 16. Qf2 {[%emt 0:07:46]} Nd7 {[%emt 0:00:28]} 17. f4 {[%emt 0:01:31]} Bg4 {[%emt 0:15:23]} 18. f5 {[%emt 0:04:07]} O-O {[%emt 0:00:25]} 19. O-O {[%emt 0:06:48]} Bh3 {[%emt 0:05:00]} 20. Rfe1 {[%emt 0:01:57]} g6 {[%emt 0:00:17]} 21. exd5 cxd5 22. Qf3 {[%emt 0:01:53]} Bxf5 {[%emt 0:02:47]} 23. Qxd5+ {[%emt 0:00:08]} Be6 {[%emt 0:00:09]} 24. Qg2 {[%emt 0:02:46]} f5 {[%emt 0:06:29]} 25. c4 {[%emt 0:07:29]} Nf6 {[%emt 0:12:02]} 26. Nc3 {[%emt 0:01:26]} Ng4 {[%emt 0:02:38]} 27. Re2 {[%emt 0:04:40]} Rad8 {[%emt 0:00:38]} 28. Nf3 {[%emt 0:01:15]} Bb8 {[%emt 0:01:55]} 29. Na4 {[%emt 0:00:40]} Qf6 {[%emt 0:02:00]} 30. Nxc5 {[%emt 0:01:45]} Bc8 {[%emt 0:00:27]} 31. Rae1 {[%emt 0:01:02]} Bd6 {[%emt 0:00:40]} 32. Nh2 {[%emt 0:03:58]} Nxh2 {[%emt 0:00:31]} 33. Qxh2 {[%emt 0:00:28]} e4 {[%emt 0:00:42]} 34. dxe4 {[%emt 0:00:56]} fxe4 {[%emt 0:00:01]} 35. b4 {[%emt 0:02:00]} Qd4+ {[%emt 0:01:03]} 36. Kh1 {[%emt 0:02:59]} Bg4 {[%emt 0:00:31]} 37. Re3 {[%emt 0:00:17]} Rf1+ {[%emt 0:00:24]} 38. Rxf1 {[%emt 0:00:28]} Qxe3 {[%emt 0:00:01]} 39. Qg1 {[%emt 0:00:55]} Bf3+ {[%emt 0:00:33]} 40. Kh2 {[%emt 0:00:13]} Bxc5 {[%emt 0:00:33]} 0-1

[Event "VI Sunway Sitges Open 2019"]
[Site "Sitges"]
[Date "2019.12.19"]
[Round "7.28"]
[White "Martin Duque, Jesus"]
[Black "Stefansson, Hannes"]
[Result "1-0"]
[ECO "B30"]
[WhiteElo "2430"]
[BlackElo "2538"]
[Annotator "ChessBase"]
[PlyCount "69"]
[EventDate "2019.12.13"]
[EventType "swiss"]
[EventCountry "ESP"]
[SourceTitle "playchess.com"]
[Source "ChessBase"]
[SourceQuality "1"]
[TimeControl "40/5400+30:1800+30"]

1. e4 {[%emt 0:02:35]} c5 {[%emt 0:00:00]} 2. Nf3 {[%emt 0:00:08]} Nc6 {[%emt 0:00:00]} 3. Bb5 {[%emt 0:00:07]} e6 {[%emt 0:00:27]} 4. Bxc6 {[%emt 0:00:04]} bxc6 {[%emt 0:00:10]} 5. d3 {[%emt 0:00:04]} Ne7 {[%emt 0:00:32]} 6. b3 {[%emt 0:00:04]} d5 {[%emt 0:08:27]} 7. Qe2 {[%emt 0:05:38]} Ng6 {[%emt 0:01:12]} 8. h4 {[%emt 0:00:47]} h5 {[%emt 0:01:48]} 9. e5 {[%emt 0:05:15]} Be7 {[%emt 0:01:34]} 10. Nbd2 {[%emt 0:02:05]} a5 {[%emt 0:01:29]} 11. a4 {[%emt 0:01:34]} Ba6 {[%emt 0:06:17]} 12. g3 {[%emt 0:04:38]} Qc7 {[%emt 0:04:52]} 13. Bb2 {[%emt 0:05:32]} Nf8 {[%emt 0:01:44]} 14. Ng5 {[%emt 0:11:15]} Nd7 {[%emt 0:03:12]} 15. O-O-O {[%emt 0:09:01]} g6 {[%emt 0:01:55]} 16. Rhe1 {[%emt 0:06:29]} Qd8 {[%emt 0:01:35]} 17. Qe3 {[%emt 0:02:33]} Nb6 {[%emt 0:05:14]} 18. c4 {[%emt 0:06:36]} Rb8 {[%emt 0:02:00]} 19. Qf4 {[%emt 0:02:36]} Rf8 {[%emt 0:00:39]} 20. Nh7 {[%emt 0:01:28]} Rh8 {[%emt 0:00:08]} 21. Ng5 {[%emt 0:00:54]} Rf8 {[%emt 0:00:21]} 22. Nh7 {[%emt 0:00:06]} Rh8 {[%emt 0:00:07]} 23. Nf6+ {[%emt 0:00:12]} Kf8 {[%emt 0:00:19]} 24. Bc3 {[%emt 0:10:02]} Na8 {[%emt 0:03:40]} 25. Kc2 {[%emt 0:02:47]} Kg7 {[%emt 0:00:55]} 26. Rg1 {[%emt 0:03:16]} Nb6 {[%emt 0:04:05]} 27. g4 {[%emt 0:01:25]} Nd7 {[%emt 0:00:41]} 28. gxh5 {[%emt 0:00:33]} d4 {[%emt 0:02:19]} 29. hxg6 {[%emt 0:01:28]} Nxf6 {[%emt 0:00:49]} 30. gxf7+ {[%emt 0:02:41]} Kxf7 {[%emt 0:00:05]} 31. Bb2 {[%emt 0:00:45]} Qc7 {[%emt 0:02:52]} 32. Ne4 {[%emt 0:03:55]} Qb6 {[%emt 0:04:25]} 33. exf6 {[%emt 0:01:45]} Qxb3+ {[%emt 0:00:47]} 34. Kd2 {[%emt 0:00:02]} Qxb2+ {[%emt 0:00:20]} 35. Ke1 {[%emt 0:00:01]} 1-0

[Event "VI Sunway Sitges Open 2019"]
[Site "Sitges"]
[Date "2019.12.19"]
[Round "7.29"]
[White "Narayanan, Srinath"]
[Black "Bharath Subramaniyam H"]
[Result "1-0"]
[ECO "E58"]
[WhiteElo "2529"]
[BlackElo "2420"]
[Annotator "ChessBase"]
[PlyCount "85"]
[EventDate "2019.12.13"]
[EventType "swiss"]
[EventCountry "ESP"]
[SourceTitle "playchess.com"]
[Source "ChessBase"]
[SourceQuality "1"]
[TimeControl "40/5400+30:1800+30"]

1. d4 {[%emt 0:02:54]} Nf6 {[%emt 0:00:00]} 2. c4 {[%emt 0:00:04]} e6 {[%emt 0:00:38]} 3. Nc3 {[%emt 0:00:06]} Bb4 {[%emt 0:01:25]} 4. e3 {[%emt 0:02:11]} O-O {[%emt 0:00:29]} 5. Bd3 {[%emt 0:00:08]} d5 {[%emt 0:01:23]} 6. Nf3 {[%emt 0:00:29]} c5 {[%emt 0:06:02]} 7. O-O {[%emt 0:00:13]} Nc6 {[%emt 0:03:19]} 8. a3 {[%emt 0:01:50]} Bxc3 {[%emt 0:02:31]} 9. bxc3 {[%emt 0:00:02]} b6 {[%emt 0:03:23]} 10. h3 {[%emt 0:08:48]} Ba6 {[%emt 0:05:52]} 11. cxd5 {[%emt 0:01:41]} Bxd3 {[%emt 0:00:17]} 12. Qxd3 {[%emt 0:00:05]} exd5 {[%emt 0:00:19]} 13. dxc5 {[%emt 0:00:09]} bxc5 {[%emt 0:02:02]} 14. c4 {[%emt 0:00:07]} Na5 {[%emt 0:22:06]} 15. cxd5 {[%emt 0:02:47]} c4 {[%emt 0:03:54]} 16. Qc2 {[%emt 0:01:17]} Qxd5 {[%emt 0:05:22]} 17. Bb2 {[%emt 0:07:45]} Qe4 {[%emt 0:04:58]} 18. Qc3 {[%emt 0:01:29]} Nb3 {[%emt 0:00:49]} 19. Rad1 {[%emt 0:00:07]} Rac8 {[%emt 0:15:18]} 20. Ne5 {[%emt 0:10:59]} Rfe8 {[%emt 0:07:12]} 21. f3 {[%emt 0:12:01]} Qb7 {[%emt 0:01:40]} 22. Nxc4 {[%emt 0:10:13]} Qb5 {[%emt 0:01:57]} 23. Nd6 {[%emt 0:00:46]} Rxc3 {[%emt 0:00:37]} 24. Nxb5 {[%emt 0:00:04]} Rcxe3 {[%emt 0:00:34]} 25. Nd6 {[%emt 0:09:46]} Rf8 {[%emt 0:01:53]} 26. Bxf6 {[%emt 0:03:17]} gxf6 {[%emt 0:00:11]} 27. Ne4 {[%emt 0:00:03]} Na5 {[%emt 0:03:07]} 28. Nxf6+ {[%emt 0:00:12]} Kg7 {[%emt 0:00:13]} 29. Nh5+ {[%emt 0:00:07]} Kh6 {[%emt 0:01:02]} 30. Ng3 {[%emt 0:04:51]} Rxa3 {[%emt 0:00:31]} 31. Rd6+ {[%emt 0:00:04]} f6 {[%emt 0:00:55]} 32. Rc1 {[%emt 0:00:19]} Kg6 {[%emt 0:02:17]} 33. Rc7 {[%emt 0:01:13]} Rf7 {[%emt 0:01:41]} 34. Rc8 {[%emt 0:00:04]} Nb3 {[%emt 0:00:21]} 35. h4 {[%emt 0:03:54]} Ra5 {[%emt 0:01:14]} 36. h5+ {[%emt 0:02:02]} Kh6 {[%emt 0:00:54]} 37. Ne4 {[%emt 0:07:31]} Kxh5 {[%emt 0:00:51]} 38. Rg8 {[%emt 0:00:20]} Kh4 {[%emt 0:01:09]} 39. Rg4+ {[%emt 0:03:41]} Kh5 {[%emt 0:00:07]} 40. Nxf6+ {[%emt 0:00:00]} Rxf6 {[%emt 0:00:00]} 41. Rxf6 {[%emt 0:00:05]} Nc5 {[%emt 0:02:48]} 42. Rf5+ {[%emt 0:02:43]} Kh6 {[%emt 0:00:32]} 43. Kh2 {[%emt 0:00:04]} 1-0

[Event "VI Sunway Sitges Open 2019"]
[Site "Sitges"]
[Date "2019.12.19"]
[Round "7.31"]
[White "Sindarov, Javokhir"]
[Black "Travadon, Loic"]
[Result "1-0"]
[ECO "C17"]
[WhiteElo "2526"]
[BlackElo "2412"]
[Annotator "ChessBase"]
[PlyCount "105"]
[EventDate "2019.12.13"]
[EventType "swiss"]
[EventCountry "ESP"]
[SourceTitle "playchess.com"]
[Source "ChessBase"]
[SourceQuality "1"]
[TimeControl "40/5400+30:1800+30"]

1. e4 {[%emt 0:00:02]} e6 {[%emt 0:00:02]} 2. d4 {[%emt 0:00:42]} d5 {[%emt 0:00:05]} 3. Nc3 {[%emt 0:00:11]} Bb4 {[%emt 0:00:05]} 4. e5 {[%emt 0:00:45]} c5 {[%emt 0:00:05]} 5. Bd2 {[%emt 0:02:35]} Ne7 {[%emt 0:00:06]} 6. a3 {[%emt 0:04:11]} Bxc3 {[%emt 0:00:05]} 7. bxc3 {[%emt 0:00:03]} Nbc6 {[%emt 0:00:57]} 8. Nf3 {[%emt 0:04:00]} Bd7 {[%emt 0:01:01]} 9. Bd3 {[%emt 0:02:08]} c4 {[%emt 0:00:19]} 10. Be2 {[%emt 0:00:08]} Qc7 {[%emt 0:05:48]} 11. h4 {[%emt 0:02:34]} f6 {[%emt 0:02:07]} 12. Bf4 {[%emt 0:00:49]} Ng6 {[%emt 0:01:42]} 13. Bg3 {[%emt 0:02:10]} fxe5 {[%emt 0:17:56]} 14. Qd2 {[%emt 0:06:52]} O-O {[%emt 0:01:30]} 15. dxe5 {[%emt 0:00:36]} h6 {[%emt 0:02:08]} 16. h5 {[%emt 0:04:14]} Nge7 {[%emt 0:00:31]} 17. Bh2 {[%emt 0:02:30]} Rf7 {[%emt 0:01:17]} 18. Nd4 {[%emt 0:01:45]} Nxd4 {[%emt 0:01:27]} 19. cxd4 {[%emt 0:00:11]} c3 {[%emt 0:00:28]} 20. Qd3 {[%emt 0:02:49]} a6 {[%emt 0:00:52]} 21. a4 {[%emt 0:08:16]} Rc8 {[%emt 0:03:27]} 22. O-O {[%emt 0:10:50]} b5 {[%emt 0:02:05]} 23. g4 {[%emt 0:11:52]} Qb6 {[%emt 0:01:00]} 24. a5 {[%emt 0:05:57]} Qa7 {[%emt 0:00:46]} 25. Rfd1 {[%emt 0:01:56]} Nc6 {[%emt 0:02:36]} 26. Qxc3 {[%emt 0:00:53]} Nxe5 {[%emt 0:00:07]} 27. Qg3 {[%emt 0:01:56]} Nc4 {[%emt 0:01:04]} 28. g5 {[%emt 0:04:08]} hxg5 {[%emt 0:00:58]} 29. Qxg5 {[%emt 0:00:21]} Rf5 {[%emt 0:04:30]} 30. Qh4 {[%emt 0:00:26]} Rcf8 {[%emt 0:01:38]} 31. Rd3 {[%emt 0:03:42]} Be8 {[%emt 0:05:37]} 32. Bg3 {[%emt 0:00:19]} Qf7 {[%emt 0:01:11]} 33. Re1 {[%emt 0:02:01]} Qf6 {[%emt 0:08:47]} 34. Bg4 {[%emt 0:00:11]} Qxh4 {[%emt 0:00:20]} 35. Bxh4 {[%emt 0:00:05]} Bd7 {[%emt 0:00:36]} 36. Bxf5 {[%emt 0:01:02]} Rxf5 37. Rg3 {[%emt 0:00:25]} Rxh5 {[%emt 0:04:02]} 38. Bf6 {[%emt 0:00:40]} Rh7 {[%emt 0:00:52]} 39. Be7 {[%emt 0:06:52]} Rh5 {[%emt 0:03:55]} 40. Bf6 {[%emt 0:02:43]} Rh7 {[%emt 0:00:14]} 41. Be7 {[%emt 0:00:10]} Rh5 {[%emt 0:00:24]} 42. Bb4 {[%emt 0:01:44]} Rf5 {[%emt 0:00:21]} 43. Kg2 {[%emt 0:02:43]} Rf4 {[%emt 0:03:31]} 44. Rh1 {[%emt 0:01:15]} Rf5 {[%emt 0:14:26]} 45. Rh4 {[%emt 0:00:47]} e5 {[%emt 0:01:03]} 46. Rh6 {[%emt 0:01:12]} Bc8 {[%emt 0:00:46]} 47. Rc6 {[%emt 0:01:16]} Bb7 {[%emt 0:00:09]} 48. Re6 {[%emt 0:00:33]} Rf7 {[%emt 0:00:36]} 49. Re8+ {[%emt 0:00:15]} Kh7 {[%emt 0:00:05]} 50. dxe5 {[%emt 0:00:07]} d4+ {[%emt 0:00:09]} 51. Kg1 {[%emt 0:00:07]} Be4 {[%emt 0:00:48]} 52. e6 {[%emt 0:00:24]} Rc7 {[%emt 0:00:30]} 53. e7 {[%emt 0:00:39]} 1-0